bitfinex-derivatives/quotes_SOLF0:USTF0_20250901
["timestamp","ask_amount","ask_price","bid_price","bid_amount"]
[1756702080543,126.66,197.07,196.99,1.78459657]
[1756702082241,126.66,197.11,197.03,1.78459657]
[1756702082436,126.66,197.11,196.96,6.0479836]
[1756702082637,126.66,197.11,197.01,1.78459657]
[1756702082845,1.78459657,197.1,197.01,1.78459657]
[1756702084044,341.08,197.12,197.03,1.78459657]
[1756702084351,126.64,197.11,197.03,1.78459657]
[1756702084648,126.64,197.1,197.04,1.78459657]
[1756702085146,341.08,197.12,197.06,1.78459657]
[1756702085343,126.64,197.11,197.06,1.78459657]
[1756702086143,341.08,197.12,197.08,1.78459657]
[1756702087552,341.08,197.12,197.06,1.78459657]
[1756702087753,341.08,197.12,197.04,1.78459657]
[1756702088652,126.62,197.11,197.02,1.78459657]
[1756702088844,1.78459657,197.11,197.02,1.78459657]
[1756702089044,126.62,197.1,197.02,1.78459657]
[1756702089250,126.62,197.1,197.01,1.78459657]
[1756702089957,1.78459657,197.09,196.93,4.26338703]
[1756702090248,1.78459657,197.09,196.99,1.78459657]
[1756702091351,126.62,197.08,197.01,1.78459657]
[1756702091655,126.62,197.08,197.03,1.78459657]
[1756702091954,126.62,197.07,197.03,1.78459657]
[1756702092155,126.62,197.06,197.03,1.78459657]
[1756702092854,1.78459657,197.11,197.03,1.78459657]
[1756702093056,126.62,197.1,197.01,1.78459657]
[1756702093247,126.62,197.09,197.01,1.78459657]
[1756702093444,1.78459657,197.11,197.01,1.78459657]
[1756702093646,10.0,197.12,197.03,1.78459657]
[1756702093850,45.5,197.1,197.03,1.78459657]
[1756702094157,1.78459657,197.15,197.05,1.78459657]
[1756702094351,10.0,197.16,196.96,6.0479836]
[1756702094352,88.3,197.14,197.07,1.78459657]
[1756702095253,126.62,197.13,197.07,1.78459657]
[1756702096156,11.78459657,197.16,197.07,1.78459657]
[1756702096357,126.62,197.15,197.07,1.78459657]
[1756702096656,126.6,197.14,196.97,4.26338703]
[1756702096857,126.6,197.14,197.07,1.78459657]
[1756702097050,11.78459657,197.16,197.07,1.78459657]
[1756702097251,126.6,197.15,197.07,1.78459657]
[1756702098455,1.78459657,197.14,197.05,1.78459657]
[1756702099760,126.6,197.15,197.05,1.78459657]
[1756702099959,1.78459657,197.14,197.05,1.78459657]
[1756702100156,126.6,197.15,197.05,1.78459657]
[1756702100360,128.38459657,197.14,197.05,1.78459657]
[1756702102762,128.38459657,197.14,197.03,1.78459657]
[1756702103962,126.6,197.14,197.03,1.78459657]
[1756702104162,10.0,197.16,197.03,1.78459657]
[1756702104462,1.78459657,197.13,197.03,1.78459657]
[1756702105558,1.78459657,197.13,196.96,1.78459657]
[1756702105763,1.78459657,197.13,197.03,1.78459657]
[1756702107868,45.04,197.12,197.03,1.78459657]
[1756702109266,1.78459657,197.09,196.96,1.78459657]
[1756702109461,1.78459657,197.09,197.0,1.78459657]
[1756702109667,1.78459657,197.09,196.93,4.26338703]
[1756702109868,1.78459657,197.07,196.97,1.78459657]
[1756702110069,32.36,197.06,196.97,1.78459657]
[1756702110269,1.78459657,197.05,196.95,1.78459657]
[1756702110464,32.36,197.06,196.93,1.78459657]
[1756702110465,1.78459657,197.03,196.93,1.78459657]
[1756702110868,31.02,197.02,196.93,1.78459657]
[1756702111073,33.98,197.05,196.97,1.78459657]
[1756702111574,33.98,197.05,196.99,1.78459657]
[1756702112672,35.76459657,197.05,196.95,1.78459657]
[1756702113278,1.78459657,197.03,196.93,1.78459657]
[1756702113472,10.0,197.08,196.92,1.78459657]
[1756702113672,1.78459657,197.04,196.96,1.78459657]
[1756702114183,24.18,197.03,196.96,1.78459657]
[1756702114878,24.18,197.03,196.95,1.78459657]
[1756702115981,24.18,197.03,196.93,1.78459657]
[1756702116682,26.4,197.02,196.93,1.78459657]
[1756702119280,26.4,197.02,196.88,1.78459657]
[1756702119480,26.4,197.02,196.93,1.78459657]
[1756702119678,1.78459657,197.04,196.93,1.78459657]
[1756702119883,8.14,197.03,196.95,1.78459657]
[1756702120889,1.78459657,197.06,196.95,1.78459657]
[1756702121086,20.26,197.05,196.95,1.78459657]
[1756702121287,32.82,197.04,196.97,1.78459657]
[1756702121785,34.60459657,197.04,196.95,1.78459657]
[1756702122184,34.60459657,197.04,196.86,32.12338703]
[1756702122185,32.82,197.04,196.86,4.26338703]
[1756702122390,1.78459657,196.97,196.88,1.78459657]
[1756702122585,1.78459657,196.99,196.88,1.78459657]
[1756702122884,32.4,196.98,196.9,1.78459657]
[1756702123081,1.78459657,196.97,196.88,1.78459657]
[1756702123285,1.78459657,196.95,196.86,1.78459657]
[1756702123482,1.78459657,196.95,196.8,1.78459657]
[1756702123788,1.78459657,196.95,196.86,1.78459657]
[1756702123989,32.4,196.98,196.86,1.78459657]
[1756702124195,1.78459657,196.96,196.86,1.78459657]
[1756702124390,4.5706,196.9,196.88,1.78459657]
[1756702124582,71.0856,196.94,196.9,1.78459657]
[1756702124787,71.0856,196.94,196.88,1.78459657]
[1756702125390,71.0788,196.95,196.88,1.78459657]
[1756702126596,71.0788,196.95,196.9,1.78459657]
[1756702129095,1.78459657,197.01,196.92,1.78459657]
[1756702129300,126.88,197.0,196.92,1.78459657]
[1756702130796,342.94459657,197.03,196.94,1.78459657]
[1756702130997,126.84,197.02,196.94,1.78459657]
[1756702131394,126.84,197.02,196.88,1.78459657]
[1756702131395,341.16,197.03,196.96,1.78459657]
[1756702131599,341.16,197.03,196.98,1.78459657]
[1756702131802,1.78459657,197.09,196.98,1.78459657]
[1756702132005,126.82,197.08,197.0,1.78459657]
[1756702132307,71.0495,197.04,197.0,1.78459657]
[1756702132605,71.0495,197.04,196.96,1.78459657]
[1756702132606,71.0339,197.08,197.03,1.78459657]
[1756702132801,71.0352,197.07,197.03,1.78459657]
[1756702133805,4.5674,197.04,197.03,1.78459657]
[1756702134697,4.5667,197.07,197.03,1.78459657]
[1756702134900,4.5667,197.07,197.05,1.78459657]
[1756702136201,4.5673,197.04,196.96,1.78459657]
[1756702136708,4.5673,197.04,196.96,6.35349657]
[1756702137507,71.0168,197.13,197.03,1.78459657]
[1756702137508,4.5667,197.06,197.03,1.78459657]
[1756702137708,4.5667,197.06,197.05,1.78459657]
[1756702138106,4.5663,197.08,197.05,1.78459657]
[1756702138308,4.5663,197.08,197.07,1.78459657]
[1756702138701,71.0168,197.13,197.07,1.78459657]
[1756702139001,71.0105,197.14,197.04,1.78459657]
[1756702139308,71.0105,197.14,197.09,1.78459657]
[1756702139504,412.2696,197.15,197.11,1.78459657]
[1756702139708,341.26,197.15,197.11,1.78459657]
[1756702140306,341.26,197.15,197.13,1.78459657]
[1756702140605,70.9881,197.21,197.0,4.25550017]
[1756702140606,71.0033,197.16,197.0,4.25550017]
[1756702140801,4.5658,197.11,197.0,4.5681]
[1756702140998,71.0,197.17,197.1,1.78459657]
[1756702141203,71.0031,197.16,197.12,1.78459657]
[1756702141407,71.0031,197.16,197.11,1.78459657]
[1756702141408,4.5655,197.12,197.11,1.78459657]
[1756702144512,4.5649,197.14,197.11,1.78459657]
[1756702144711,4.5649,197.14,197.13,1.78459657]
[1756702145908,70.9816,197.22,197.13,1.78459657]
[1756702146114,70.9816,197.22,197.17,1.78459657]
[1756702146307,126.66,197.23,197.19,1.78459657]
[1756702146511,131.2822,197.26,197.21,1.78459657]
[1756702146812,412.1167,197.29,197.23,1.78459657]
[1756702147007,4.5621,197.27,197.25,1.78459657]
[1756702148807,412.1167,197.29,197.2,1.78459657]
[1756702149010,412.1167,197.29,197.24,1.78459657]
[1756702149612,538.8767,197.29,197.24,1.78459657]
[1756702150016,70.9715,197.25,197.23,1.78459657]
[1756702150414,4.5626,197.24,197.23,1.78459657]
[1756702151711,4.5626,197.24,197.14,9.86]
[1756702151907,4.5626,197.24,197.2,1.78459657]
[1756702152109,70.9567,197.29,197.23,1.78459657]
[1756702152325,70.9567,197.29,197.26,1.78459657]
[1756702154117,70.9522,197.31,197.26,1.78459657]
[1756702154319,70.9522,197.31,197.28,1.78459657]
[1756702154916,540.0,197.43,197.3,1.78459657]
[1756702155124,197.5415,197.34,197.28,1.78459657]
[1756702156914,197.5415,197.34,197.2,1.78459657]
[1756702157115,197.5415,197.34,197.27,1.78459657]
[1756702159425,126.6,197.34,197.2,1.78459657]
[1756702159621,128.38459657,197.34,197.25,1.78459657]
[1756702159923,1.78459657,197.32,197.21,1.78459657]
[1756702160123,1.78459657,197.3,197.21,1.78459657]
[1756702160426,126.56,197.29,197.21,1.78459657]
[1756702160920,1.78459657,197.32,197.21,1.78459657]
[1756702161120,0.8823865,197.34,197.25,1.78459657]
[1756702161328,57.48,197.33,197.27,1.78459657]
[1756702161519,1.78459657,197.37,197.27,1.78459657]
[1756702161520,84.62,197.32,197.27,1.78459657]
[1756702161717,2.66680412,197.37,197.27,1.78459657]
[1756702161927,126.58,197.36,197.27,1.78459657]
[1756702162327,126.58,197.35,197.29,1.78459657]
[1756702162526,126.58,197.35,197.31,1.78459657]
[1756702162922,342.70459657,197.41,197.31,1.78459657]
[1756702163225,342.70459657,197.41,197.28,1.78459657]
[1756702163226,126.58,197.4,197.33,1.78459657]
[1756702163726,340.92,197.41,197.35,1.78459657]
[1756702163926,126.56,197.4,197.35,1.78459657]
[1756702164119,340.92,197.41,197.35,1.78459657]
[1756702164323,126.56,197.4,197.37,1.78459657]
[1756702164519,467.48,197.41,197.37,1.78459657]
[1756702165028,467.48,197.41,197.35,1.78459657]
[1756702165929,467.48,197.41,197.34,2.66870139]
[1756702167931,470.14870139,197.41,197.29,2.66870139]
[1756702168133,471.03069652,197.41,197.27,2.66870139]
[1756702169034,126.6,197.4,197.27,2.66870139]
[1756702169538,10.0,197.4,197.27,2.66870139]
[1756702169839,126.58,197.39,197.27,2.66870139]
[1756702170435,10.0,197.4,197.27,2.66870139]
[1756702170734,126.56,197.39,197.27,2.66870139]
[1756702170935,126.56,197.39,197.21,4.563]
[1756702171138,126.56,197.39,197.28,2.66870139]
[1756702171433,126.52,197.38,197.28,2.66870139]
[1756702172935,126.52,197.38,197.21,4.563]
[1756702173136,126.52,197.38,197.28,2.66870139]
[1756702173933,10.0,197.4,197.28,2.66870139]
[1756702174137,126.44,197.39,197.28,2.66870139]
[1756702174340,126.42,197.38,197.28,2.66870139]
[1756702175739,10.0,197.37,197.23,2.66870139]
[1756702176047,126.44,197.36,197.26,2.66870139]
[1756702176238,10.0,197.37,197.26,2.66870139]
[1756702176744,35.86,197.36,197.29,2.66870139]
[1756702177342,341.80199513,197.41,197.29,2.66870139]
[1756702177641,126.56,197.4,197.29,2.66870139]
[1756702178240,126.56,197.39,197.29,2.66870139]
[1756702178841,126.56,197.39,197.27,2.66870139]
[1756702179445,2.66870139,197.38,197.27,2.66870139]
[1756702179650,12.66870139,197.38,197.24,2.66870139]
[1756702181453,10.0,197.37,197.24,2.66870139]
[1756702181854,2.66870139,197.36,197.24,2.66870139]
[1756702182056,93.22,197.35,197.24,2.66870139]
[1756702182754,93.22,197.35,197.21,2.66870139]
[1756702183653,2.66870139,197.36,197.24,2.66870139]
[1756702183956,10.0,197.37,197.24,2.66870139]
[1756702184149,38.94,197.36,197.24,2.66870139]
[1756702185466,38.94,197.36,197.25,2.66870139]
[1756702185653,10.0,197.37,197.25,2.66870139]
[1756702185957,74.98,197.36,197.25,2.66870139]
[1756702186658,111.28,197.35,197.25,2.66870139]
[1756702187357,126.58,197.34,197.25,2.66870139]
[1756702187856,12.66870139,197.37,197.25,2.66870139]
[1756702188048,126.56,197.36,197.25,2.66870139]
[1756702189459,126.56,197.36,197.24,2.66870139]
[1756702189650,12.66870139,197.37,197.24,2.66870139]
[1756702189651,10.0,197.37,197.24,2.66870139]
[1756702189851,49.2,197.36,197.27,2.66870139]
[1756702190055,10.0,197.37,197.29,1.78045823]
[1756702190259,10.0,197.37,197.31,1.78045823]
[1756702190458,136.52,197.37,197.31,1.78045823]
[1756702190860,10.0,197.37,197.31,1.78045823]
[1756702191756,11.78045823,197.37,197.21,4.2229686]
[1756702191959,11.78045823,197.37,197.18,4.2229686]
[1756702191960,2.67173974,197.36,197.18,4.2229686]
[1756702192160,2.67173974,197.36,197.22,2.67173974]
[1756702192457,10.0,197.37,197.25,2.67173974]
[1756702192656,47.68,197.36,197.25,2.67173974]
[1756702193157,97.12,197.35,197.25,2.67173974]
[1756702193960,10.0,197.37,197.28,2.67173974]
[1756702194258,10.0,197.37,197.2,30.3029686]
[1756702194259,10.0,197.37,197.31,2.67173974]
[1756702194460,126.52,197.38,197.31,2.67173974]
[1756702196456,341.80199513,197.41,197.31,2.67173974]
[1756702196658,126.52,197.4,197.31,2.67173974]
[1756702199464,341.80199513,197.41,197.31,2.67173974]
[1756702199665,126.44,197.39,197.31,2.67173974]
[1756702200465,126.44,197.38,197.31,2.67173974]
[1756702200766,126.44,197.38,197.23,4.5627]
[1756702200967,126.44,197.38,197.29,2.67173974]
[1756702201968,126.44,197.37,197.26,2.67173974]
[1756702203462,12.67173974,197.4,197.26,2.67173974]
[1756702203662,126.44,197.36,197.29,2.67173974]
[1756702203969,126.44,197.39,197.32,2.67173974]
[1756702204567,10.0,197.44,197.35,2.67173974]
[1756702204868,348.9885261,197.48,197.35,2.67173974]
[1756702204869,350.66,197.48,197.35,2.67173974]
[1756702205168,126.44,197.47,197.35,2.67173974]
[1756702205664,340.66,197.48,197.38,2.67173974]
[1756702205867,126.44,197.47,197.38,2.67173974]
[1756702207272,126.42,197.46,197.38,2.67173974]
[1756702207666,340.66,197.48,197.38,2.67173974]
[1756702207871,126.42,197.47,197.41,2.67173974]
[1756702208071,340.66,197.48,197.41,2.67173974]
[1756702208274,126.42,197.47,197.41,2.67173974]
[1756702209568,340.66,197.48,197.41,2.67173974]
[1756702209770,126.42,197.47,197.41,2.67173974]
[1756702211071,126.4,197.46,197.41,2.67173974]
[1756702211869,340.66,197.48,197.41,2.67173974]
[1756702212064,126.4,197.47,197.41,2.67173974]
[1756702212380,126.4,197.47,197.33,15.04]
[1756702212668,126.4,197.47,197.39,2.67173974]
[1756702212864,126.4,197.47,197.36,2.67173974]
[1756702213372,129.07173974,197.47,197.28,2.67173974]
[1756702213672,129.95353373,197.47,197.34,2.67173974]
[1756702213862,127.28179399,197.47,197.34,2.67173974]
[1756702214268,127.28179399,197.47,197.28,7.23323974]
[1756702214470,127.28179399,197.47,197.34,2.67173974]
[1756702214666,127.28179399,197.47,197.23,4.2229686]
[1756702214972,2.67173974,197.45,197.31,2.67173974]
[1756702216266,2.67173974,197.42,197.28,2.67173974]
[1756702216463,39.12,197.41,197.27,2.67173974]
[1756702218568,2.67173974,197.39,197.24,2.67173974]
[1756702218774,2.67173974,197.36,197.22,2.67173974]
[1756702218973,15.12,197.35,197.22,2.67173974]
[1756702220270,15.12,197.35,197.15,4.2229686]
[1756702220469,2.67173974,197.33,197.19,2.67173974]
[1756702221670,6.54,197.32,197.22,2.67173974]
[1756702221974,2.67173974,197.37,197.22,2.67173974]
[1756702222176,8.9,197.36,197.22,2.67173974]
[1756702222772,2.67173974,197.37,197.22,2.67173974]
[1756702222974,14.5,197.36,197.22,2.67173974]
[1756702223169,19.58,197.35,197.22,2.67173974]
[1756702223776,2.67173974,197.37,197.22,2.67173974]
[1756702223977,340.64,197.39,197.22,2.67173974]
[1756702224178,10.79173974,197.38,197.25,2.67173974]
[1756702225579,2.67173974,197.38,197.25,2.67173974]
[1756702225778,10.0,197.37,197.28,2.67173974]
[1756702225978,126.42,197.36,197.28,2.67173974]
[1756702226373,126.42,197.35,197.28,2.67173974]
[1756702231574,126.42,197.34,197.28,2.67173974]
[1756702232573,126.42,197.34,197.27,2.67173974]
[1756702232983,126.42,197.34,197.24,2.67173974]
[1756702236679,129.09173974,197.34,197.21,2.67173974]
[1756702236882,10.0,197.33,197.21,2.67173974]
[1756702237486,2.67173974,197.31,197.19,2.67173974]
[1756702238288,10.0,197.33,197.19,2.67173974]
[1756702238486,2.67173974,197.31,197.19,2.67173974]
[1756702239689,47.94,197.3,197.22,2.67173974]
[1756702240485,2.67173974,197.35,197.22,2.67173974]
[1756702240985,68.84,197.34,197.22,2.67173974]
[1756702241678,2.67173974,197.35,197.22,2.67173974]
[1756702241989,19.24,197.34,197.22,2.67173974]
[1756702242284,19.24,197.34,197.14,340.88]
[1756702242285,19.24,197.34,197.21,2.67173974]
[1756702242483,2.67173974,197.35,197.24,2.67173974]
[1756702242688,10.0,197.37,197.27,2.67173974]
[1756702242893,126.44,197.36,197.27,2.67173974]
[1756702243683,126.44,197.36,197.23,2.67173974]
[1756702243886,10.0,197.37,197.23,2.67173974]
[1756702244188,126.44,197.36,197.23,2.67173974]
[1756702245483,12.67173974,197.37,197.26,2.67173974]
[1756702245687,126.44,197.36,197.26,2.67173974]
[1756702247491,126.44,197.36,197.23,2.67173974]
[1756702248787,12.67173974,197.37,197.23,2.67173974]
[1756702248981,57.56,197.36,197.23,2.67173974]
[1756702249698,10.0,197.35,197.23,2.67173974]
[1756702250391,12.67173974,197.35,197.23,2.67173974]
[1756702250583,93.96,197.34,197.23,2.67173974]
[1756702251894,93.96,197.34,197.2,2.67173974]
[1756702252089,93.96,197.34,197.14,340.88]
[1756702252090,1.78170011,197.32,197.22,1.78170011]
[1756702252282,10.0,197.31,197.22,1.78170011]
[1756702252484,1.78170011,197.3,197.2,1.78170011]
[1756702252892,10.0,197.31,197.24,1.78170011]
[1756702253691,10.0,197.31,197.25,1.78170011]
[1756702254694,45.68,197.31,197.25,1.78170011]
[1756702254895,10.0,197.35,197.25,1.78170011]
[1756702255094,9.08,197.34,197.25,1.78170011]
[1756702258793,9.08,197.34,197.27,1.78170011]
[1756702262094,10.0,197.35,197.29,1.78170011]
[1756702262289,10.0,197.35,197.31,1.78170011]
[1756702262489,340.64,197.39,197.31,1.78170011]
[1756702262490,126.42,197.37,197.31,1.78170011]
[1756702262994,126.42,197.37,197.24,4.23993544]
[1756702263195,126.42,197.37,197.3,1.78170011]
[1756702266902,1.78170011,197.39,197.3,1.78170011]
[1756702267103,91.84,197.38,197.3,1.78170011]
[1756702268304,126.4,197.37,197.3,1.78170011]
[1756702269104,126.4,197.38,197.34,1.78170011]
[1756702269695,126.4,197.38,197.28,1.78170011]
[1756702269696,126.4,197.38,197.32,1.78170011]
[1756702270908,10.0,197.4,197.32,1.78170011]
[1756702271103,126.38,197.39,197.32,1.78170011]
[1756702271904,126.38,197.38,197.32,1.78170011]
[1756702272409,346.37678636,197.44,197.36,1.78170011]
[1756702272607,126.38,197.43,197.36,1.78170011]
[1756702272807,126.38,197.43,197.38,1.78170011]
[1756702273703,126.38,197.43,197.36,1.78170011]
[1756702274407,126.38,197.43,197.34,1.78170011]
[1756702275513,126.36,197.42,197.34,1.78170011]
[1756702275813,342.50170011,197.44,197.34,1.78170011]
[1756702276005,126.36,197.43,197.34,1.78170011]
[1756702276713,1.78170011,197.42,197.32,1.78170011]
[1756702277315,342.50170011,197.44,197.34,1.78170011]
[1756702277514,126.36,197.41,197.34,1.78170011]
[1756702277911,342.50170011,197.44,197.34,1.78170011]
[1756702278118,126.36,197.4,197.34,1.78170011]
[1756702278417,342.50170011,197.44,197.36,1.78170011]
[1756702278615,126.36,197.39,197.36,1.78170011]
[1756702279308,126.34,197.4,197.36,1.78170011]
[1756702279512,340.72,197.44,197.38,1.78170011]
[1756702279712,126.34,197.43,197.38,1.78170011]
[1756702280520,126.34,197.43,197.36,1.78170011]
[1756702286130,126.34,197.43,197.28,6.34320011]
[1756702286331,342.50170011,197.44,197.35,1.78170011]
[1756702286527,126.32,197.43,197.35,1.78170011]
[1756702286929,126.32,197.42,197.35,1.78170011]
[1756702287128,126.32,197.41,197.35,1.78170011]
[1756702287932,340.72,197.44,197.35,1.78170011]
[1756702288136,126.32,197.43,197.35,1.78170011]
[1756702289032,340.72,197.44,197.35,1.78170011]
[1756702289236,126.3,197.43,197.37,1.78170011]
[1756702289434,340.72,197.44,197.37,1.78170011]
[1756702289732,126.3,197.43,197.37,1.78170011]
[1756702291236,340.72,197.44,197.37,1.78170011]
[1756702291435,126.3,197.43,197.37,1.78170011]
[1756702292734,11.78170011,197.42,197.31,1.78170011]
[1756702292934,126.3,197.41,197.33,1.78170011]
[1756702295733,126.28,197.4,197.33,1.78170011]
[1756702301638,126.28,197.4,197.32,1.78170011]
[1756702302739,11.78170011,197.42,197.32,1.78170011]
[1756702302940,126.26,197.41,197.32,1.78170011]
[1756702303140,126.26,197.4,197.32,1.78170011]
[1756702303742,128.04170011,197.4,197.3,1.78170011]
[1756702303941,128.04170011,197.4,197.28,1.78170011]
[1756702303942,1.78170011,197.37,197.28,1.78170011]
[1756702304245,126.26,197.36,197.26,1.78170011]
[1756702304438,1.78170011,197.37,197.26,1.78170011]
[1756702304637,126.26,197.36,197.28,1.78170011]
[1756702305537,1.78170011,197.37,197.28,1.78170011]
[1756702305742,10.0,197.39,197.32,1.78170011]
[1756702306041,7.43848647,197.42,197.32,1.78170011]
[1756702306042,47.94,197.38,197.32,1.78170011]
[1756702306242,47.94,197.38,197.3,1.78170011]
[1756702308044,87.04,197.37,197.32,1.78170011]
[1756702308542,124.92,197.37,197.32,1.78170011]
[1756702309344,126.26,197.37,197.32,1.78170011]
[1756702311155,126.26,197.37,197.3,1.78170011]
[1756702313246,126.26,197.37,197.28,1.78170011]
[1756702315251,1.78170011,197.38,197.28,1.78170011]
[1756702315455,126.24,197.37,197.28,1.78170011]
[1756702316153,126.24,197.37,197.29,1.78170011]
[1756702316352,1.78170011,197.38,197.29,1.78170011]
[1756702316753,50.94,197.37,197.29,1.78170011]
[1756702317249,15.65678636,197.41,197.31,1.78170011]
[1756702317556,126.24,197.4,197.33,1.78170011]
[1756702318954,128.02170011,197.4,197.31,1.78170011]
[1756702319159,1.78170011,197.38,197.29,1.78170011]
[1756702319559,1.78170011,197.38,197.27,1.78170011]
[1756702320260,126.22,197.37,197.27,1.78170011]
[1756702320858,126.22,197.37,197.24,4.26257849]
[1756702321063,126.22,197.37,197.27,1.78170011]
[1756702321565,126.22,197.36,197.27,1.78170011]
[1756702321966,126.22,197.35,197.27,1.78170011]
[1756702322168,1.78170011,197.38,197.28,1.78170011]
[1756702322365,126.22,197.37,197.28,1.78170011]
[1756702322565,1.78170011,197.36,197.26,1.78170011]
[1756702323567,43.88,197.38,197.32,1.78170011]
[1756702324471,5.65678636,197.41,197.25,4.26257849]
[1756702324666,346.37678636,197.44,197.35,1.78170011]
[1756702324863,39.5,197.41,197.37,1.78170011]
[1756702325161,126.22,197.43,197.39,1.78170011]
[1756702325560,126.22,197.43,197.31,8.82347849]
[1756702325561,340.72,197.44,197.41,1.78170011]
[1756702325758,5.65678636,197.51,197.43,1.78170011]
[1756702325964,5.65678636,197.52,197.47,1.78170011]
[1756702326266,126.2,197.53,197.47,1.78170011]
[1756702327273,126.2,197.53,197.45,1.78170011]
[1756702327964,1.78170011,197.52,197.43,1.78170011]
[1756702329268,126.2,197.53,197.43,1.78170011]
[1756702329468,126.18,197.52,197.47,1.78170011]
[1756702330169,126.18,197.52,197.45,1.78170011]
[1756702330564,126.18,197.51,197.47,1.78170011]
[1756702331068,340.62,197.56,197.47,1.78170011]
[1756702331263,126.16,197.55,197.47,1.78170011]
[1756702332070,340.62,197.56,197.47,1.78170011]
[1756702332261,126.16,197.55,197.47,1.78170011]
[1756702333765,126.16,197.54,197.47,1.78170011]
[1756702338977,340.62,197.56,197.51,1.78170011]
[1756702339275,466.72,197.56,197.51,1.78170011]
[1756702339980,466.72,197.56,197.53,1.78170011]
[1756702340277,466.72,197.56,197.52,1.78170011]
[1756702340673,10.0,197.6,197.54,1.78170011]
[1756702340978,126.1,197.59,197.54,1.78170011]
[1756702341972,2.66275738,197.65,197.54,1.78170011]
[1756702342172,0.88105727,197.65,197.56,1.78170011]
[1756702342376,0.88105727,197.65,197.47,4.5572]
[1756702342377,126.08,197.64,197.47,4.5572]
[1756702342680,127.86170011,197.64,197.55,1.78170011]
[1756702342976,126.08,197.64,197.55,1.78170011]
[1756702344382,126.06,197.63,197.55,1.78170011]
[1756702344783,2.66275738,197.65,197.55,1.78170011]
[1756702344983,126.06,197.62,197.55,1.78170011]
[1756702345580,126.06,197.62,197.57,1.78170011]
[1756702346279,126.04,197.62,197.57,1.78170011]
[1756702346481,340.42,197.68,197.61,1.78170011]
[1756702346681,340.42,197.68,197.64,1.78170011]
[1756702347584,340.42,197.68,197.62,1.78170011]
[1756702347981,340.42,197.68,197.52,63.78170011]
[1756702348180,340.42,197.68,197.6,1.78170011]
[1756702348490,340.42,197.68,197.52,1.78170011]
[1756702348687,342.20170011,197.68,197.57,1.78170011]
[1756702348887,342.20170011,197.68,197.55,1.78170011]
[1756702348888,1.78170011,197.66,197.55,1.78170011]
[1756702349089,127.68,197.65,197.55,1.78170011]
[1756702349981,1.78170011,197.64,197.55,1.78170011]
[1756702350788,1.78170011,197.64,197.53,1.78170011]
[1756702352183,1.78170011,197.62,197.46,76.87532186]
[1756702352385,1.78170011,197.62,197.51,1.78170011]
[1756702354893,1.78170011,197.6,197.51,1.78170011]
[1756702355090,34.36,197.59,197.51,1.78170011]
[1756702356194,1.78170011,197.6,197.51,1.78170011]
[1756702356393,66.84,197.59,197.46,76.87532186]
[1756702356698,1.78170011,197.58,197.48,1.78170011]
[1756702359202,34.88,197.57,197.48,1.78170011]
[1756702359702,67.94,197.56,197.47,1.78170011]
[1756702360501,77.74,197.56,197.49,1.78170011]
[1756702361600,77.74,197.56,197.47,1.78170011]
[1756702362506,79.52170011,197.56,197.38,4.5592]
[1756702362705,79.52170011,197.56,197.46,1.78170011]
[1756702363205,1.78170011,197.54,197.43,1.78170011]
[1756702363998,1.78170011,197.54,197.36,1.78170011]
[1756702364199,1.78170011,197.51,197.41,1.78170011]
[1756702365398,77.74,197.56,197.41,1.78170011]
[1756702365703,1.78170011,197.5,197.41,1.78170011]
[1756702365906,76.7,197.49,197.41,1.78170011]
[1756702366204,77.72,197.55,197.47,1.78170011]
[1756702366410,88.06,197.56,197.49,1.78170011]
[1756702366599,88.06,197.56,197.48,1.78170011]
[1756702367208,10.0,197.58,197.5,1.78170011]
[1756702367406,54.34,197.58,197.5,1.78170011]
[1756702367807,44.34,197.58,197.5,1.78170011]
[1756702368407,44.34,197.58,197.41,3.6]
[1756702368809,1.78170011,197.57,197.47,1.78170011]
[1756702369309,44.34,197.58,197.49,1.78170011]
[1756702369909,1.78170011,197.59,197.49,1.78170011]
[1756702370109,35.96,197.58,197.51,1.78170011]